fUSD/lending_fUSD_20250804
["ID","MTS","AMOUNT","RATE_DAILY","PERIOD"]
[377168548,1754266253272,-583.64,0.00049589,120]
[377168549,1754266253282,-684.05,0.00049589,120]
[377168550,1754266253291,-615.77,0.00049589,120]
[377168551,1754266253301,-584.52,0.00049589,120]
[377168552,1754266253311,-400.0,0.00049589,120]
[377168553,1754266253320,-489.14,0.00049589,120]
[377168554,1754266253330,-400.0,0.00049589,120]
[377168555,1754266253340,-868.81,0.00049589,120]
[377168556,1754266253350,-690.52,0.00049589,60]
[377168557,1754266253360,-420.51,0.00049589,120]
[377168558,1754266253369,-439.87,0.00049589,120]
[377168559,1754266253379,-702.58,0.00049589,120]
[377168560,1754266253388,-400.0,0.00049589,120]
[377168561,1754266253397,-603.37,0.00049589,120]
[377168562,1754266253406,-400.0,0.00049589,120]
[377168563,1754266253416,-555.17,0.00049589,120]
[377168564,1754266253425,-400.0,0.00049589,120]
[377168565,1754266253434,-531.0,0.00049589,120]
[377168566,1754266253444,-445.54,0.00049589,120]
[377168567,1754266253453,-400.0,0.00049589,120]
[377168568,1754266253463,-625.64,0.00049589,120]
[377168569,1754266253472,-1465.42,0.00049589,120]
[377168570,1754266253481,-400.0,0.00049589,120]
[377168571,1754266253491,-400.0,0.00049589,120]
[377168572,1754266253500,-992.0,0.00049589,120]
[377168573,1754266253510,-400.0,0.00049589,120]
[377168574,1754266253519,-401.09109015,0.00049589,120]
[377168575,1754266253529,-614.41,0.00049589,120]
[377168576,1754266253538,-638.57,0.00049589,120]
[377168577,1754266253548,-400.0,0.00049589,120]
[377168578,1754266253558,-400.0,0.00049589,120]
[377168579,1754266253567,-400.0,0.00049589,120]
[377168580,1754266253576,-1024.51,0.00049589,120]
[377168581,1754266253586,-513.84,0.00049589,120]
[377168582,1754266253595,-630.95,0.00049589,120]
[377168583,1754266253604,-509.06,0.00049589,120]
[377168584,1754266253613,-400.0,0.00049589,120]
[377168585,1754266253623,-400.0,0.00049589,120]
[377168586,1754266253632,-510.13,0.00049589,120]
[377168587,1754266253641,-400.0,0.00049589,120]
[377168588,1754266253651,-473.08,0.00049589,60]
[377168589,1754266253660,-400.0,0.00049589,120]
[377168590,1754266253669,-400.0,0.00049589,120]
[377168591,1754266253679,-789.14,0.00049589,120]
[377168592,1754266253688,-670.88,0.00049589,120]
[377168593,1754266253698,-400.0,0.00049589,120]
[377168594,1754266253707,-491.05,0.00049589,120]
[377168595,1754266253716,-400.0,0.00049589,120]
[377168596,1754266253727,-400.0,0.00049589,120]
[377168597,1754266253736,-670.31,0.00049589,120]
[377168598,1754266253746,-400.0,0.00049589,120]
[377168599,1754266253755,-567.58,0.00049589,120]
[377168600,1754266253765,-1338.8,0.00049589,120]
[377168601,1754266253774,-400.0,0.00049589,120]
[377168602,1754266253783,-400.0,0.00049589,120]
[377168603,1754266253792,-1094.27,0.00049589,120]
[377168604,1754266253802,-1146.97,0.00049589,120]
[377168605,1754266253812,-400.0,0.00049589,120]
[377168606,1754266253821,-400.0,0.00049589,120]
[377168607,1754266253831,-604.37,0.00049589,120]
[377168608,1754266253840,-1247.42,0.00049589,120]
[377168609,1754266253850,-488.78,0.00049589,120]
[377168610,1754266253860,-400.0,0.00049589,120]
[377168611,1754266253869,-691.49,0.00049589,60]
[377168612,1754266253879,-400.0,0.00049589,120]
[377168613,1754266253888,-400.0,0.00049589,120]
[377168614,1754266253898,-1100.26,0.00049589,120]
[377168615,1754266253907,-400.0,0.00049589,120]
[377168616,1754266253916,-400.0,0.00049589,120]
[377168617,1754266253926,-400.0,0.00049589,120]
[377168618,1754266253935,-3139.17,0.00049589,120]
[377168619,1754266253945,-1448.55,0.00049589,120]
[377168620,1754266253955,-400.0,0.00049589,120]
[377168621,1754266253964,-400.0,0.00049589,120]
[377168622,1754266253975,-400.0,0.00049589,120]
[377168623,1754266254065,-448.93,0.00049589,120]
[377168624,1754266254075,-400.0,0.00049589,120]
[377168625,1754266254084,-1098.45,0.00049589,120]
[377168626,1754266254094,-712.17,0.00049589,120]
[377168627,1754266254103,-400.0,0.00049589,120]
[377168628,1754266254113,-607.98,0.00049589,120]
[377168629,1754266254122,-495.24,0.00049589,120]
[377168630,1754266254132,-400.0,0.00049589,120]
[377168631,1754266254141,-400.0,0.00049589,120]
[377168632,1754266254151,-400.0,0.00049589,120]
[377168633,1754266254160,-400.0,0.00049589,120]
[377168634,1754266254170,-400.0,0.00049589,120]
[377168635,1754266254180,-400.0,0.00049589,120]
[377168636,1754266254193,-478.08,0.00049589,120]
[377168637,1754266254203,-400.0,0.00049589,120]
[377168638,1754266254212,-1237.03,0.00049589,120]
[377168639,1754266254221,-1160.21,0.00049589,120]
[377168640,1754266254232,-400.0,0.00049589,120]
[377168641,1754266254241,-738.45,0.00049589,120]
[377168642,1754266254250,-400.0,0.00049589,120]
[377168643,1754266254260,-400.0,0.00049589,120]
[377168644,1754266254270,-701.08,0.00049589,120]
[377168645,1754266254279,-594.9,0.00049589,120]
[377168646,1754266254288,-416.84,0.00049589,120]
[377168647,1754266254297,-567.8,0.00049589,120]
[377168648,1754266254306,-400.0,0.00049589,120]
[377168649,1754266254315,-400.0,0.00049589,120]
[377168650,1754266254325,-1272.79,0.00049589,120]
[377168651,1754266254335,-400.0,0.00049589,120]
[377168652,1754266254344,-718.31,0.00049589,120]
[377168653,1754266254353,-400.0,0.00049589,120]
[377168654,1754266254362,-442.21,0.00049589,120]
[377168655,1754266254372,-506.64,0.00049589,120]
[377168656,1754266254381,-400.0,0.00049589,120]
[377168657,1754266254390,-400.0,0.00049589,120]
[377168658,1754266254399,-400.0,0.00049589,120]
[377168659,1754266254409,-400.0,0.00049589,120]
[377168660,1754266254418,-400.0,0.00049589,120]
[377168661,1754266254427,-881.69,0.00049589,120]
[377168662,1754266254436,-716.07,0.00049589,120]
[377168663,1754266254446,-434.79497896,0.00049589,120]
[377168664,1754266254455,-400.0,0.00049589,120]
[377168665,1754266254464,-400.0,0.00049589,120]
[377168666,1754266254473,-778.27,0.00049589,120]
[377168667,1754266254483,-400.0,0.00049589,120]
[377168668,1754266254493,-769.66,0.00049589,120]
[377168669,1754266254502,-739.68,0.00049589,120]
[377168670,1754266254512,-400.0,0.00049589,120]
[377168671,1754266254521,-596.82,0.00049589,120]
[377168672,1754266254530,-440.01,0.00049589,120]
[377168673,1754266254539,-400.0,0.00049589,120]
[377168674,1754266254548,-653.07,0.00049589,120]
[377168675,1754266254558,-400.0,0.00049589,120]
[377168676,1754266254567,-400.0,0.00049589,120]
[377168677,1754266254576,-624.22,0.00049589,120]
[377168678,1754266254585,-1169.69,0.00049589,120]
[377168679,1754266254595,-400.0,0.00049589,120]
[377168680,1754266254604,-400.0,0.00049589,120]
[377168681,1754266254613,-1172.43,0.00049589,120]
[377168682,1754266254623,-400.0,0.00049589,120]
[377168683,1754266254633,-177.21966737,0.00049589,120]
[377168684,1754266254642,-400.0,0.00049589,120]
[377168685,1754266254651,-400.0,0.00049589,120]
[377168686,1754266254660,-400.0,0.00049589,120]
[377168687,1754266254669,-400.0,0.00049589,120]
[377168688,1754266254679,-400.0,0.00049589,120]
[377168689,1754266254688,-1317.98,0.00049589,120]
[377168690,1754266254697,-400.0,0.00049589,120]
[377168691,1754266254707,-782.27,0.00049589,120]
[377168692,1754266254716,-504.66,0.00049589,120]
[377168693,1754266254726,-506.35,0.00049589,120]
[377168694,1754266254735,-400.0,0.00049589,120]
[377168695,1754266254745,-400.0,0.00049589,120]
[377168696,1754266254755,-455.79,0.00049589,120]
[377168697,1754266254764,-400.0,0.00049589,120]
[377168698,1754266254773,-400.0,0.00049589,120]
[377168699,1754266254783,-400.0,0.00049589,120]
[377168700,1754266254792,-400.0,0.00049589,120]
[377168701,1754266254801,-1138.31,0.00049589,120]
[377168702,1754266254811,-400.0,0.00049589,120]
[377168703,1754266254820,-400.0,0.00049589,120]
[377168704,1754266254830,-685.06,0.00049589,120]
[377168705,1754266254839,-400.0,0.00049589,120]
[377168706,1754266254849,-1082.26,0.00049589,120]
[377168707,1754266254858,-400.0,0.00049589,120]
[377168708,1754266254867,-400.0,0.00049589,120]
[377168709,1754266254877,-1057.59,0.00049589,120]
[377168710,1754266254887,-1137.3,0.00049589,120]
[377168711,1754266254896,-668.26,0.00049589,120]
[377168712,1754266254905,-912.95,0.00049589,120]
[377168713,1754266254924,-400.0,0.00049589,120]
[377168714,1754266254935,-400.0,0.00049589,120]
[377168715,1754266254945,-584.16,0.00049589,120]
[377168716,1754266254954,-623.29,0.00049589,120]
[377168717,1754266254963,-400.0,0.00049589,120]
[377168718,1754266254973,-400.0,0.00049589,120]
[377168719,1754266254983,-400.0,0.00049589,120]
[377168720,1754266254993,-400.0,0.00049589,120]
[377168721,1754266255002,-400.0,0.00049589,120]
[377168722,1754266255012,-400.0,0.00049589,120]
[377168723,1754266255021,-400.0,0.00049589,120]
[377168724,1754266255031,-400.0,0.00049589,120]
[377168725,1754266255040,-400.0,0.00049589,120]
[377168726,1754266255049,-430.71,0.00049589,120]
[377168727,1754266255059,-837.56,0.00049589,120]
[377168728,1754266255068,-805.41,0.00049589,120]
[377168729,1754266255077,-582.82,0.00049589,120]
[377168730,1754266255087,-723.73,0.00049589,120]
[377168731,1754266255096,-1017.53,0.00049589,120]
[377168732,1754266255105,-400.0,0.00049589,120]
[377168733,1754266255115,-400.0,0.00049589,120]
[377168734,1754266255125,-400.0,0.00049589,120]
[377168735,1754266255134,-521.78,0.00049589,120]
[377168736,1754266255143,-400.0,0.00049589,120]
[377168737,1754266255152,-400.0,0.00049589,120]
[377168738,1754266255161,-458.72,0.00049589,120]
[377168739,1754266255171,-400.0,0.00049589,120]
[377168740,1754266255180,-400.0,0.00049589,120]
[377168741,1754266255195,-1032.15,0.00049589,120]
[377168742,1754266255205,-400.0,0.00049589,120]
[377168743,1754266255214,-1153.74,0.00049589,120]
[377168744,1754266255224,-400.0,0.00049589,120]
[377168745,1754266255234,-680.95,0.00049589,120]
[377168746,1754266255243,-400.0,0.00049589,120]
[377168747,1754266255252,-1189.36,0.00049589,120]
[377168748,1754266255264,-400.0,0.00049589,120]
[377168749,1754266255274,-905.71,0.00049589,120]
[377168750,1754266255283,-560.29,0.00049589,120]
[377168751,1754266255293,-451.76,0.00049589,120]
[377168752,1754266255302,-400.0,0.00049589,120]
[377168753,1754266255311,-400.0,0.00049589,120]
[377168754,1754266255321,-774.41,0.00049589,120]
[377168755,1754266255330,-639.99,0.00049589,120]
[377168756,1754266255339,-400.0,0.00049589,120]
[377168757,1754266255349,-400.0,0.00049589,120]
[377168758,1754266255359,-652.16,0.00049589,120]
[377168759,1754266255368,-664.11,0.00049589,120]
[377168760,1754266255377,-400.0,0.00049589,120]
[377168761,1754266255387,-400.0,0.00049589,120]
[377168762,1754266255398,-965.13,0.00049589,120]
[377168763,1754266255407,-531.01,0.00049589,120]
[377168764,1754266255416,-696.53,0.00049589,120]
[377168765,1754266255425,-400.0,0.00049589,120]
[377168766,1754266255434,-742.04,0.00049589,120]
[377168767,1754266255443,-484.4,0.00049589,120]
[377168768,1754266255453,-400.0,0.00049589,120]
[377168769,1754266255462,-400.0,0.00049589,120]
[377168770,1754266255472,-400.0,0.00049589,120]
[377168771,1754266255482,-1036.76,0.00049589,120]
[377168772,1754266255492,-419.2860067,0.00049589,120]
[377168773,1754266255502,-526.23,0.00049589,120]
[377168774,1754266255511,-400.0,0.00049589,120]
[377168775,1754266255521,-400.0,0.00049589,120]
[377168776,1754266255530,-695.08,0.00049589,120]
[377168777,1754266255540,-721.5,0.00049589,120]
[377168778,1754266255550,-428.3,0.00049589,120]
[377168779,1754266255559,-400.0,0.00049589,120]
[377168780,1754266255569,-400.0,0.00049589,120]
[377168781,1754266255579,-400.0,0.00049589,120]
[377168782,1754266255588,-400.0,0.00049589,120]
[377168783,1754266255598,-400.0,0.00049589,120]
[377168784,1754266255607,-793.8,0.00049589,120]
[377168785,1754266255617,-979.54,0.00049589,120]
[377168786,1754266255626,-653.53,0.00049589,120]
[377168787,1754266255636,-400.0,0.00049589,120]
[377168788,1754266255645,-400.0,0.00049589,120]
[377168789,1754266255654,-400.0,0.00049589,120]
[377168790,1754266255664,-530.82,0.00049589,120]
[377168791,1754266255673,-412.99,0.00049589,120]
[377168792,1754266255682,-400.0,0.00049589,120]
[377168793,1754266255692,-1088.89,0.00049589,120]
[377168794,1754266255702,-636.85,0.00049589,120]
[377168795,1754266255711,-400.0,0.00049589,120]
[377168796,1754266255721,-400.0,0.00049589,120]
[377168797,1754266255730,-400.0,0.00049589,120]
[377168798,1754266255740,-642.71,0.00049589,120]
[377168799,1754266255750,-472.66,0.00049589,120]
[377168800,1754266255760,-518.14,0.00049589,120]
[377168801,1754266255771,-400.0,0.00049589,120]
[377168802,1754266255780,-400.0,0.00049589,120]
[377168803,1754266255790,-400.0,0.00049589,120]
[377168804,1754266255799,-400.0,0.00049589,120]
[377168805,1754266255808,-400.0,0.00049589,120]
[377168806,1754266255818,-400.0,0.00049589,120]
[377168807,1754266255829,-400.0,0.00049589,120]
[377168808,1754266255838,-400.0,0.00049589,120]
[377168809,1754266255848,-400.0,0.00049589,120]
[377168810,1754266255857,-400.0,0.00049589,120]
[377168811,1754266255867,-400.0,0.00049589,120]
[377168812,1754266255876,-1237.18,0.00049589,120]
[377168813,1754266255886,-589.66,0.00049589,120]
[377168814,1754266255896,-598.98,0.00049589,120]
[377168815,1754266255905,-400.0,0.00049589,120]
[377168816,1754266255916,-834.12,0.00049589,120]
[377168817,1754266255926,-474.21,0.00049589,120]
[377168818,1754266255936,-400.0,0.00049589,120]
[377168819,1754266255946,-824.86,0.00049589,120]
[377168820,1754266255956,-400.0,0.00049589,120]
[377168821,1754266255966,-527.51,0.00049589,120]
[377168822,1754266255976,-400.0,0.00049589,120]
[377168823,1754266255985,-613.0,0.00049589,120]
[377168824,1754266255995,-1159.81,0.00049589,120]
[377168825,1754266256005,-614.61,0.00049589,120]
[377168826,1754266256014,-400.0,0.00049589,120]
[377168827,1754266256025,-1017.09,0.00049589,30]
[377168828,1754266256034,-712.71,0.00049589,120]
[377168829,1754266256044,-1351.92,0.00049589,120]
[377168830,1754266256055,-1114.0,0.00049589,120]
[377168831,1754266256064,-400.0,0.00049589,120]
[377168832,1754266256074,-164.34651678,0.00049589,120]
[377168833,1754266256083,-430.13,0.00049589,120]
[377168834,1754266256093,-400.0,0.00049589,120]
[377168835,1754266256103,-400.0,0.00049589,120]
[377168836,1754266256112,-511.91,0.00049589,120]
[377168837,1754266256122,-400.0,0.00049589,120]
[377168838,1754266256131,-400.0,0.00049589,120]
[377168839,1754266256142,-870.8,0.00049589,120]
[377168840,1754266256151,-410.00873871,0.00049589,120]
[377168841,1754266256161,-400.0,0.00049589,120]
[377168842,1754266256170,-400.0,0.00049589,120]
[377168843,1754266256179,-690.24,0.00049589,120]
[377168844,1754266256193,-400.0,0.00049589,120]
[377168845,1754266256202,-888.12,0.00049589,120]
[377168846,1754266256211,-400.0,0.00049589,120]
[377168847,1754266256221,-552.02,0.00049589,120]
[377168848,1754266256231,-751.35,0.00049589,120]
[377168849,1754266256241,-400.0,0.00049589,120]
[377168850,1754266256251,-400.0,0.00049589,120]
[377168851,1754266256260,-795.25,0.00049589,120]
[377168852,1754266256270,-413.15,0.00049589,120]
[377168853,1754266256279,-1388.21,0.00049589,120]
[377168854,1754266256289,-551.22,0.00049589,120]
[377168855,1754266256298,-709.36,0.00049589,120]
[377168856,1754266256307,-974.26,0.00049589,120]
[377168857,1754266256317,-400.0,0.00049589,120]
[377168858,1754266256326,-400.0,0.00049589,120]
[377168859,1754266256335,-714.51,0.00049589,120]
[377168860,1754266256344,-400.0,0.00049589,120]
[377168861,1754266256353,-572.06,0.00049589,120]
[377168862,1754266256363,-400.0,0.00049589,120]
[377168863,1754266256372,-704.87,0.00049589,120]
[377168864,1754266256382,-400.0,0.00049589,120]
[377168865,1754266256392,-400.0,0.00049589,120]
[377168866,1754266256401,-400.0,0.00049589,120]
[377168867,1754266256411,-400.0,0.00049589,120]
[377168868,1754266256420,-901.25,0.00049589,120]
[377168869,1754266256430,-525.07,0.00049589,120]
[377168870,1754266256440,-499.3,0.00049589,120]
[377168871,1754266256449,-510.06,0.00049589,120]
[377168872,1754266256458,-400.0,0.00049589,120]
[377168873,1754266256468,-438.37,0.00049589,120]
[377168874,1754266256477,-400.0,0.00049589,120]
[377168875,1754266256487,-463.0,0.00049589,120]
[377168876,1754266256497,-400.0,0.00049589,120]
[377168877,1754266256508,-400.0,0.00049589,120]
[377168878,1754266256517,-529.56,0.00049589,120]
[377168879,1754266256527,-400.0,0.00049589,120]
[377168880,1754266256536,-698.43,0.00049589,120]
[377168881,1754266256546,-546.99,0.00049589,120]
[377168882,1754266256556,-543.32953975,0.00049589,120]
[377168883,1754266256566,-400.0,0.00049589,120]
[377168884,1754266256576,-613.18,0.00049589,120]
[377168885,1754266256586,-706.54,0.00049589,120]
[377168886,1754266256595,-400.0,0.00049589,120]
[377168887,1754266256606,-400.0,0.00049589,120]
[377168888,1754266256616,-756.53,0.00049589,120]
[377168889,1754266256626,-918.39,0.00049589,120]
[377168890,1754266256637,-400.0,0.00049589,120]
[377168891,1754266256646,-348.55727217,0.00049589,120]
[377168892,1754266256655,-400.0,0.00049589,120]
[377168893,1754266256665,-400.0,0.00049589,120]
[377168894,1754266256675,-400.0,0.00049589,120]
[377168895,1754266256685,-400.0,0.00049589,120]
[377168896,1754266256694,-400.0,0.00049589,120]
[377168897,1754266256703,-725.35,0.00049589,120]
[377168898,1754266256713,-322.72625896,0.00049589,120]
[377168899,1754266256723,-1138.42,0.00049589,120]
[377168900,1754266256733,-415.19,0.00049589,120]
[377168901,1754266256743,-400.0,0.00049589,120]
[377168902,1754266256754,-543.93,0.00049589,120]
[377168903,1754266256763,-400.0,0.00049589,120]
[377168904,1754266256773,-429.97,0.00049589,120]
[377168905,1754266256782,-538.34558784,0.00049589,120]
[377168906,1754266256792,-400.0,0.00049589,120]
[377168907,1754266256802,-587.28,0.00049589,120]
[377168908,1754266256812,-483.4,0.00049589,120]
[377168909,1754266256822,-370.46559987,0.00049589,120]
[377168910,1754266256831,-602.09,0.00049589,120]
[377168911,1754266256841,-401.32867274,0.00049589,120]
[377168912,1754266256850,-355.74865623,0.00049589,120]
[377168913,1754266256860,-400.0,0.00049589,120]
[377168914,1754266256870,-534.14,0.00049589,120]
[377168915,1754266256880,-400.0,0.00049589,120]
[377168916,1754266256889,-400.0,0.00049589,120]
[377168917,1754266256899,-405.99989707,0.00049589,120]
[377168918,1754266256909,-400.0,0.00049589,120]
[377168919,1754266256920,-713.71,0.00049589,120]
[377168920,1754266256930,-1102.62,0.00049589,120]
[377168921,1754266256941,-867.69,0.00049589,120]
[377168922,1754266256950,-575.69,0.00049589,120]
[377168923,1754266256960,-592.34,0.00049589,120]
[377168924,1754266256970,-622.42,0.00049589,120]
[377168925,1754266256979,-700.23,0.00049589,120]
[377168926,1754266256988,-201.97508167,0.00049589,120]
[377168927,1754266256998,-730.21,0.00049589,120]
[377168928,1754266257007,-704.07,0.00049589,120]
[377168929,1754266257017,-400.0,0.00049589,120]
[377168930,1754266257026,-400.0,0.00049589,120]
[377168931,1754266257035,-400.0,0.00049589,120]
[377168932,1754266257045,-657.6,0.00049589,120]
[377168933,1754266257054,-400.0,0.00049589,120]
[377168934,1754266257064,-321.05586658,0.00049589,120]
[377168935,1754266257073,-220.10926822,0.00049589,120]
[377168936,1754266257082,-400.0,0.00049589,120]
[377168937,1754266257091,-596.56,0.00049589,120]
[377168938,1754266257101,-595.96,0.00049589,120]
[377168939,1754266257110,-400.0,0.00049589,120]
[377168940,1754266257119,-400.0,0.00049589,120]
[377168941,1754266257129,-400.0,0.00049589,120]
[377168942,1754266257138,-400.0,0.00049589,120]
[377168943,1754266257148,-400.0,0.00049589,120]
[377168944,1754266257157,-606.08,0.00049589,120]
[377168945,1754266257167,-400.0,0.00049589,120]
[377168946,1754266257176,-844.81,0.00049589,120]
[377168947,1754266257188,-991.17,0.00049589,120]
[377168948,1754266257198,-400.0,0.00049589,120]
[377168949,1754266257207,-407.92,0.00049589,120]
[377168950,1754266257217,-400.0,0.00049589,120]
[377168951,1754266257228,-260.65060362,0.00049589,120]
[377168952,1754266257237,-400.0,0.00049589,120]
[377168953,1754266257247,-400.0,0.00049589,120]
[377168954,1754266257257,-405.64628296,0.00049589,120]
[377168955,1754266257267,-400.0,0.00049589,120]
[377168956,1754266257277,-426.56,0.00049589,120]
[377168957,1754266257286,-400.0,0.00049589,120]
[377168958,1754266257296,-400.0,0.00049589,120]
[377168959,1754266257305,-400.0,0.00049589,120]
[377168960,1754266257315,-1080.54,0.00049589,120]
[377168961,1754266257324,-400.0,0.00049589,120]
[377168962,1754266257334,-400.0,0.00049589,120]
[377168963,1754266257344,-400.0,0.00049589,120]
[377168964,1754266257353,-400.0,0.00049589,120]
[377168965,1754266257364,-1262.38,0.00049589,120]
[377168966,1754266257373,-522.28,0.00049589,120]
[377168967,1754266257383,-400.0,0.00049589,120]
[377168968,1754266257392,-975.3,0.00049589,120]
[377168969,1754266257402,-527.59,0.00049589,120]
[377168970,1754266257411,-400.0,0.00049589,120]
[377168971,1754266257421,-899.43,0.00049589,120]
[377168972,1754266257430,-400.0,0.00049589,120]
[377168973,1754266257440,-465.12676402,0.00049589,120]
[377168974,1754266257449,-400.0,0.00049589,30]
[377168975,1754266257459,-624.85,0.00049589,120]
[377168976,1754266257469,-682.22,0.00049589,120]
[377168977,1754266257478,-400.0,0.00049589,120]
[377168978,1754266257488,-400.0,0.00049589,120]
[377168979,1754266257497,-1206.85,0.00049589,120]
[377168980,1754266257507,-445.01,0.00049589,120]
[377168981,1754266257517,-400.0,0.00049589,120]
[377168982,1754266257526,-400.0,0.00049589,120]
[377168983,1754266257535,-400.0,0.00049589,120]
[377168984,1754266257544,-400.0,0.00049589,120]
[377168985,1754266257554,-400.0,0.00049589,120]
[377168986,1754266257563,-841.86,0.00049589,120]
[377168987,1754266257573,-400.0,0.00049589,120]
[377168988,1754266257582,-400.0,0.00049589,120]
[377168989,1754266257592,-400.0,0.00049589,120]
[377168990,1754266257601,-400.0,0.00049589,120]
[377168991,1754266257611,-986.7,0.00049589,120]
[377168992,1754266257620,-462.48,0.00049589,120]
[377168993,1754266257629,-809.38,0.00049589,120]
[377168994,1754266257638,-875.08,0.00049589,120]
[377168995,1754266257647,-400.0,0.00049589,120]
[377168996,1754266257657,-546.26,0.00049589,120]
[377168997,1754266257666,-3895.82,0.00049589,120]
[377168998,1754266257675,-874.57,0.00049589,120]
[377168999,1754266257685,-400.0,0.00049589,120]
[377169000,1754266257694,-446.14,0.00049589,120]
[377169001,1754266257704,-826.95,0.00049589,2]
[377169002,1754266257713,-712.49,0.00049589,120]
[377169003,1754266257722,-400.0,0.00049589,120]
[377169004,1754266257731,-400.0,0.00049589,7]
[377169005,1754266257740,-249.20576401,0.00049589,120]
[377169006,1754266257749,-744.58,0.00049589,120]
[377169007,1754266257759,-400.0,0.00049589,120]
[377169008,1754266257769,-548.48,0.00049589,120]
[377169009,1754266257778,-400.0,0.00049589,120]
[377169010,1754266257787,-400.0,0.00049589,120]
[377169011,1754266257797,-400.0,0.00049589,120]
[377169012,1754266257806,-400.0,0.00049589,120]
[377169013,1754266257816,-400.0,0.00049589,120]
[377169014,1754266257825,-400.0,0.00049589,120]
[377169015,1754266257834,-400.0,0.00049589,120]
[377169016,1754266257843,-400.0,0.00049589,120]
[377169017,1754266257852,-611.64,0.00049589,120]
[377169018,1754266257862,-604.74,0.00049589,120]
[377169019,1754266257871,-660.69,0.00049589,120]
[377169020,1754266257880,-400.0,0.00049589,120]
[377169021,1754266257889,-400.0,0.00049589,120]
[377169022,1754266257898,-400.0,0.00049589,120]
[377169023,1754266257908,-400.0,0.00049589,120]
[377169024,1754266257917,-400.0,0.00049589,120]
[377169025,1754266257926,-400.0,0.00049589,120]
[377169026,1754266257936,-400.0,0.00049589,120]
[377169027,1754266257947,-1483.13,0.00049589,120]
[377169028,1754266257956,-1412.34,0.00049589,120]
[377169029,1754266257968,-400.0,0.00049589,120]
[377169030,1754266257978,-400.0,0.00049589,120]
[377169031,1754266257987,-1096.77,0.00049589,120]
[377169032,1754266257997,-400.0,0.00049589,120]
[377169033,1754266258006,-1008.09,0.00049589,120]
[377169034,1754266258016,-400.0,0.00049589,120]
[377169035,1754266258025,-400.0,0.00049589,120]
[377169036,1754266258035,-164.34000001,0.00049589,120]
[377169037,1754266258044,-1014.67687961,0.00049589,120]
[377169038,1754266258053,-435.44386084,0.00049589,120]
[377169039,1754266258063,-400.0,0.00049589,120]
[377169040,1754266258072,-400.0,0.00049589,120]
[377169041,1754266258082,-435.47,0.00049589,120]
[377169042,1754266258091,-732.16,0.00049589,120]
[377169043,1754266258101,-787.39,0.00049589,120]
[377169044,1754266258111,-400.0,0.00049589,120]
[377169045,1754266258120,-400.0,0.00049589,120]
[377169046,1754266258130,-495.52,0.00049589,120]
[377169047,1754266258139,-368.79152644,0.00049589,120]